Workbook

Sheet markop27-03-2018
A1: SDS 2.4 | B1: AQ Results | C1: 1
A2: Filename | B2: markop27-03-2018
A3: PlateID
A4: Assay Type | B4: Absolute Quantification
A5: Run DateTime | B5: 3/27/18 6:18:27 PM
A6: Operator
A7: ThermalCycleParams
A9: Sample Information
A11: Well | B11: Sample Name | C11: Detector Name | D11: Reporter | E11: Task | F11: Ct | G11: cDNA | H11: dCt | I11: Quantity | J11: Qty Mean | K11: Qty StdDev | L11: Ct Median | M11: Ct Mean | N11: Ct StdDev | O11: Ct Type | P11: Template Name | Q11: Baseline Type | R11: Baseline Start | S11: Baseline Stop | T11: Threshold Type | U11: Threshold | V11: FOS | W11: HMD | X11: LME | Y11: EW | Z11: BPR | AA11: NAW | AB11: HNS | AC11: HRN | AD11: EAF | AE11: BAF | AF11: TAF | AG11: CAF
A12: 97 | B12: E1 | C12: dsGFP | D12: SYBR | E12: HT115::dsGFP | F12: 20.865969 | G12: 10000 | H12: =AVERAGE(F14:F15)-AVERAGE(F12:F13) -> 3.2825935 | O12: Automatic Ct | Q12: Automatic | T12: Automatic | U12: 0.18199947
A13: 98 | B13: E2 | C13: dsGFP | D13: SYBR | E13: HT115::dsGFP | F13: 20.524393 | G13: 10000 | O13: Automatic Ct | Q13: Automatic | T13: Automatic | U13: 0.18199947
A14: 99 | B14: E3 | C14: dsGFP | D14: SYBR | E14: HT115::dsGFP | F14: 24.130405 | G14: 1000 | H14: =AVERAGE(F16:F17)-AVERAGE(F14:F15) -> 3.649295 | O14: Automatic Ct | Q14: Automatic | T14: Automatic | U14: 0.18199947
A15: 100 | B15: E4 | C15: dsGFP | D15: SYBR | E15: HT115::dsGFP | F15: 23.825144 | G15: 1000 | O15: Automatic Ct | Q15: Automatic | T15: Automatic | U15: 0.18199947
A16: 101 | B16: E5 | C16: dsGFP | D16: SYBR | E16: HT115::dsGFP | F16: 27.41946 | G16: 100 | O16: Automatic Ct | Q16: Automatic | T16: Automatic | U16: 0.18199947
A17: 102 | B17: E6 | C17: dsGFP | D17: SYBR | E17: HT115::dsGFP | F17: 27.834679 | G17: 100 | O17: Automatic Ct | Q17: Automatic | T17: Automatic | U17: 0.18199947
C18: dsGFP | D18: SYBR | E18: HT115::dsMesh | G18: 10000
C19: dsGFP | D19: SYBR | E19: HT115::dsMesh | G19: 10000
C20: dsGFP | D20: SYBR | E20: HT115::dsMesh | G20: 1000
C21: dsGFP | D21: SYBR | E21: HT115::dsMesh | G21: 1000
C22: dsGFP | D22: SYBR | E22: HT115::dsMesh | G22: 100
C23: dsGFP | D23: SYBR | E23: HT115::dsMesh | G23: 100
C24: dsGFP | D24: SYBR | E24: dsMesh in-vitro | G24: 10000
C25: dsGFP | D25: SYBR | E25: dsMesh in-vitro | G25: 10000
C26: dsGFP | D26: SYBR | E26: dsMesh in-vitro | G26: 1000
C27: dsGFP | D27: SYBR | E27: dsMesh in-vitro | G27: 1000
C28: dsGFP | D28: SYBR | E28: dsMesh in-vitro | G28: 100
C29: dsGFP | D29: SYBR | E29: dsMesh in-vitro | G29: 100
A30: 115 | B30: E19 | C30: dsGFP | D30: SYBR | E30: Unknown | F30: 20.722065 | G30: 10000 | H30: =AVERAGE(F32:F33)-AVERAGE(F30:F31) -> 3.6300265 | O30: Automatic Ct | Q30: Automatic | T30: Automatic | U30: 0.18199947
A31: 116 | B31: E20 | C31: dsGFP | D31: SYBR | E31: Unknown | F31: 21.53381 | G31: 10000 | O31: Automatic Ct | Q31: Automatic | T31: Automatic | U31: 0.18199947
A32: 117 | B32: E21 | C32: dsGFP | D32: SYBR | E32: Unknown | F32: 24.679556 | G32: 1000 | H32: =AVERAGE(F34:F35)-AVERAGE(F32:F33) -> 3.932103 | O32: Automatic Ct | Q32: Automatic | T32: Automatic | U32: 0.18199947
A33: 118 | B33: E22 | C33: dsGFP | D33: SYBR | E33: Unknown | F33: 24.836372 | G33: 1000 | O33: Automatic Ct | Q33: Automatic | T33: Automatic | U33: 0.18199947
A34: 119 | B34: E23 | C34: dsGFP | D34: SYBR | E34: Unknown | F34: 28.63121 | G34: 100 | H34: =AVERAGE(F36:F37)-AVERAGE(F34:F35) -> 4.180306 | O34: Automatic Ct | Q34: Automatic | T34: Automatic | U34: 0.18199947
A35: 120 | B35: E24 | C35: dsGFP | D35: SYBR | E35: Unknown | F35: 28.748924 | G35: 100 | O35: Automatic Ct | Q35: Automatic | T35: Automatic | U35: 0.18199947
A36: 139 | B36: F19 | C36: dsGFP | D36: SYBR | E36: Unknown | F36: 32.380108 | G36: 10 | H36: =AVERAGE(F38:F39)-AVERAGE(F36:F37) -> 3.0184985 | O36: Automatic Ct | Q36: Automatic | T36: Automatic | U36: 0.18199947
A37: 140 | B37: F20 | C37: dsGFP | D37: SYBR | E37: Unknown | F37: 33.360638 | G37: 10 | O37: Automatic Ct | Q37: Automatic | T37: Automatic | U37: 0.18199947
A38: 141 | B38: F21 | C38: dsGFP | D38: SYBR | E38: Unknown | F38: 37.037193 | G38: 1 | O38: Automatic Ct | Q38: Automatic | T38: Automatic | U38: 0.18199947
A39: 142 | B39: F22 | C39: dsGFP | D39: SYBR | E39: Unknown | F39: 34.74055 | G39: 1 | O39: Automatic Ct | Q39: Automatic | T39: Automatic | U39: 0.18199947
A40: 143 | B40: F23 | C40: dsGFP | D40: SYBR | E40: Unknown | F40: Undetermined | G40: NTC | O40: Automatic Ct | Q40: Automatic | T40: Automatic | U40: 0.18199947 | AA40: TRUE | AD40: TRUE
A41: 144 | B41: F24 | C41: dsGFP | D41: SYBR | E41: Unknown | F41: Undetermined | G41: NTC | O41: Automatic Ct | Q41: Automatic | T41: Automatic | U41: 0.18199947 | AA41: TRUE | AD41: TRUE
A42: Slope | C42: cycles/log decade
A43: Y-Intercept
A44: R^2
A47: Well | B47: Sample Name | C47: Detector Name | D47: Reporter | E47: Task | F47: Ct | G47: cDNA | H47: dCt | I47: Quantity | J47: Qty Mean | K47: Qty StdDev | L47: Ct Median | M47: Ct Mean | N47: Ct StdDev | O47: Ct Type | P47: Template Name | Q47: Baseline Type | R47: Baseline Start | S47: Baseline Stop | T47: Threshold Type | U47: Threshold | V47: FOS | W47: HMD | X47: LME | Y47: EW | Z47: BPR | AA47: NAW | AB47: HNS | AC47: HRN | AD47: EAF | AE47: BAF | AF47: TAF | AG47: CAF
C48: dsMesh | D48: SYBR | E48: HT115::dsGFP | G48: 10000
C49: dsMesh | D49: SYBR | E49: HT115::dsGFP | G49: 10000
C50: dsMesh | D50: SYBR | E50: HT115::dsGFP | G50: 1000
C51: dsMesh | D51: SYBR | E51: HT115::dsGFP | G51: 1000
C52: dsMesh | D52: SYBR | E52: HT115::dsGFP | G52: 100
C53: dsMesh | D53: SYBR | E53: HT115::dsGFP | G53: 100
A54: 49 | B54: C1 | C54: dsMesh | D54: SYBR | E54: HT115::dsMesh | F54: 8.954543 | G54: 10000 | H54: =AVERAGE(F56:F57)-AVERAGE(F54:F55) -> 2.7279905 | O54: Automatic Ct | Q54: Automatic | T54: Automatic | U54: 0.6440838
A55: 50 | B55: C2 | C55: dsMesh | D55: SYBR | E55: HT115::dsMesh | F55: 9.969917 | G55: 10000 | O55: Automatic Ct | Q55: Automatic | T55: Automatic | U55: 0.6440838
A56: 51 | B56: C3 | C56: dsMesh | D56: SYBR | E56: HT115::dsMesh | F56: 12.077255 | G56: 1000 | H56: =AVERAGE(F58:F59)-AVERAGE(F56:F57) -> 3.324055 | O56: Automatic Ct | Q56: Automatic | T56: Automatic | U56: 0.6440838
A57: 52 | B57: C4 | C57: dsMesh | D57: SYBR | E57: HT115::dsMesh | F57: 12.303186 | G57: 1000 | O57: Automatic Ct | Q57: Automatic | T57: Automatic | U57: 0.6440838
A58: 53 | B58: C5 | C58: dsMesh | D58: SYBR | E58: HT115::dsMesh | F58: 15.377641 | G58: 100 | O58: Automatic Ct | Q58: Automatic | T58: Automatic | U58: 0.6440838
A59: 54 | B59: C6 | C59: dsMesh | D59: SYBR | E59: HT115::dsMesh | F59: 15.65091 | G59: 100 | O59: Automatic Ct | Q59: Automatic | T59: Automatic | U59: 0.6440838
A60: 55 | B60: C7 | C60: dsMesh | D60: SYBR | E60: dsMesh in-vitro | F60: 14.807805 | G60: 10000 | H60: =AVERAGE(F62:F63)-AVERAGE(F60:F61) -> 3.1707215 | O60: Automatic Ct | Q60: Automatic | T60: Automatic | U60: 0.6440838
A61: 56 | B61: C8 | C61: dsMesh | D61: SYBR | E61: dsMesh in-vitro | F61: 14.734721 | G61: 10000 | O61: Automatic Ct | Q61: Automatic | T61: Automatic | U61: 0.6440838
A62: 57 | B62: C9 | C62: dsMesh | D62: SYBR | E62: dsMesh in-vitro | F62: 17.918835 | G62: 1000 | H62: =AVERAGE(F64:F65)-AVERAGE(F62:F63) -> 4.2718265 | O62: Automatic Ct | Q62: Automatic | T62: Automatic | U62: 0.6440838
A63: 58 | B63: C10 | C63: dsMesh | D63: SYBR | E63: dsMesh in-vitro | F63: 17.965134 | G63: 1000 | O63: Automatic Ct | Q63: Automatic | T63: Automatic | U63: 0.6440838
A64: 59 | B64: C11 | C64: dsMesh | D64: SYBR | E64: dsMesh in-vitro | F64: 22.035515 | G64: 100 | O64: Automatic Ct | Q64: Automatic | T64: Automatic | U64: 0.6440838
A65: 60 | B65: C12 | C65: dsMesh | D65: SYBR | E65: dsMesh in-vitro | F65: 22.392107 | G65: 100 | O65: Automatic Ct | Q65: Automatic | T65: Automatic | U65: 0.6440838
A66: 67 | B66: C19 | C66: dsMesh | D66: SYBR | E66: Unknown | F66: 9.785736 | G66: 10000 | H66: =AVERAGE(F68:F69)-AVERAGE(F66:F67) -> 3.38969375 | O66: Automatic Ct | Q66: Automatic | T66: Automatic | U66: 0.6440838
A67: 68 | B67: C20 | C67: dsMesh | D67: SYBR | E67: Unknown | F67: 9.939786 | G67: 10000 | O67: Automatic Ct | Q67: Automatic | T67: Automatic | U67: 0.6440838
A68: 69 | B68: C21 | C68: dsMesh | D68: SYBR | E68: Unknown | F68: 13.217267 | G68: 1000 | H68: =AVERAGE(F70:F71)-AVERAGE(F68:F69) -> 3.62318125 | O68: Automatic Ct | Q68: Automatic | T68: Automatic | U68: 0.6440838
A69: 70 | B69: C22 | C69: dsMesh | D69: SYBR | E69: Unknown | F69: 13.2876425 | G69: 1000 | O69: Automatic Ct | Q69: Automatic | T69: Automatic | U69: 0.6440838
A70: 71 | B70: C23 | C70: dsMesh | D70: SYBR | E70: Unknown | F70: 16.795954 | G70: 100 | H70: =AVERAGE(F72:F73)-AVERAGE(F70:F71) -> 3.439852 | O70: Automatic Ct | Q70: Automatic | T70: Automatic | U70: 0.6440838
A71: 72 | B71: C24 | C71: dsMesh | D71: SYBR | E71: Unknown | F71: 16.955318 | G71: 100 | O71: Automatic Ct | Q71: Automatic | T71: Automatic | U71: 0.6440838
A72: 91 | B72: D19 | C72: dsMesh | D72: SYBR | E72: Unknown | F72: 20.290293 | G72: 10 | H72: =AVERAGE(F74:F75)-AVERAGE(F72:F73) -> 3.6135405 | O72: Automatic Ct | Q72: Automatic | T72: Automatic | U72: 0.6440838
A73: 92 | B73: D20 | C73: dsMesh | D73: SYBR | E73: Unknown | F73: 20.340683 | G73: 10 | O73: Automatic Ct | Q73: Automatic | T73: Automatic | U73: 0.6440838
A74: 93 | B74: D21 | C74: dsMesh | D74: SYBR | E74: Unknown | F74: 23.93977 | G74: 1 | O74: Automatic Ct | Q74: Automatic | T74: Automatic | U74: 0.6440838
A75: 94 | B75: D22 | C75: dsMesh | D75: SYBR | E75: Unknown | F75: 23.918287 | G75: 1 | O75: Automatic Ct | Q75: Automatic | T75: Automatic | U75: 0.6440838
A76: 95 | B76: D23 | C76: dsMesh | D76: SYBR | E76: Unknown | F76: Undetermined | G76: NTC | O76: Automatic Ct | Q76: Automatic | T76: Automatic | U76: 0.6440838 | AA76: TRUE | AD76: TRUE
A77: 96 | B77: D24 | C77: dsMesh | D77: SYBR | E77: Unknown | F77: Undetermined | G77: NTC | O77: Automatic Ct | Q77: Automatic | T77: Automatic | U77: 0.6440838 | AA77: TRUE | AD77: TRUE
A78: Slope | C78: cycles/log decade
A79: Y-Intercept
A80: R^2
A83: Well | B83: Sample Name | C83: Detector Name | D83: Reporter | E83: Task | F83: Ct | G83: cDNA | H83: dCt | I83: Quantity | J83: Qty Mean | K83: Qty StdDev | L83: Ct Median | M83: Ct Mean | N83: Ct StdDev | O83: Ct Type | P83: Template Name | Q83: Baseline Type | R83: Baseline Start | S83: Baseline Stop | T83: Threshold Type | U83: Threshold | V83: FOS | W83: HMD | X83: LME | Y83: EW | Z83: BPR | AA83: NAW | AB83: HNS | AC83: HRN | AD83: EAF | AE83: BAF | AF83: TAF | AG83: CAF
A84: 1 | B84: A1 | C84: E.coli_16SrDNA | D84: FAM | E84: HT115::dsGFP | F84: 11.544214 | G84: 10000 | H84: =AVERAGE(F86:F87)-AVERAGE(F84:F85) -> 2.5569885 | O84: Automatic Ct | Q84: Automatic | T84: Automatic | U84: 0.028777357 | AA84: TRUE
A85: 2 | B85: A2 | C85: E.coli_16SrDNA | D85: FAM | E85: HT115::dsGFP | F85: 11.354792 | G85: 10000 | O85: Automatic Ct | Q85: Automatic | T85: Automatic | U85: 0.028777357 | AA85: TRUE
A86: 3 | B86: A3 | C86: E.coli_16SrDNA | D86: FAM | E86: HT115::dsGFP | F86: 14.029467 | G86: 1000 | H86: =AVERAGE(F88:F89)-AVERAGE(F86:F87) -> 3.1763145 | O86: Automatic Ct | Q86: Automatic | T86: Automatic | U86: 0.028777357 | AA86: TRUE
A87: 4 | B87: A4 | C87: E.coli_16SrDNA | D87: FAM | E87: HT115::dsGFP | F87: 13.983516 | G87: 1000 | O87: Automatic Ct | Q87: Automatic | T87: Automatic | U87: 0.028777357 | AA87: TRUE
A88: 5 | B88: A5 | C88: E.coli_16SrDNA | D88: FAM | E88: HT115::dsGFP | F88: 17.209896 | G88: 100 | O88: Automatic Ct | Q88: Automatic | T88: Automatic | U88: 0.028777357 | AA88: TRUE
A89: 6 | B89: A6 | C89: E.coli_16SrDNA | D89: FAM | E89: HT115::dsGFP | F89: 17.155716 | G89: 100 | O89: Automatic Ct | Q89: Automatic | T89: Automatic | U89: 0.028777357 | AA89: TRUE
A90: 7 | B90: A7 | C90: E.coli_16SrDNA | D90: FAM | E90: HT115::dsMesh | F90: 11.349843 | G90: 10000 | H90: =AVERAGE(F92:F93)-AVERAGE(F90:F91) -> 2.929393 | O90: Automatic Ct | Q90: Automatic | T90: Automatic | U90: 0.028777357 | AA90: TRUE
A91: 8 | B91: A8 | C91: E.coli_16SrDNA | D91: FAM | E91: HT115::dsMesh | F91: 11.413763 | G91: 10000 | O91: Automatic Ct | Q91: Automatic | T91: Automatic | U91: 0.028777357 | AA91: TRUE
A92: 9 | B92: A9 | C92: E.coli_16SrDNA | D92: FAM | E92: HT115::dsMesh | F92: 14.348087 | G92: 1000 | H92: =AVERAGE(F94:F95)-AVERAGE(F92:F93) -> 3.394272 | O92: Automatic Ct | Q92: Automatic | T92: Automatic | U92: 0.028777357 | AA92: TRUE
A93: 10 | B93: A10 | C93: E.coli_16SrDNA | D93: FAM | E93: HT115::dsMesh | F93: 14.274305 | G93: 1000 | O93: Automatic Ct | Q93: Automatic | T93: Automatic | U93: 0.028777357 | AA93: TRUE
A94: 11 | B94: A11 | C94: E.coli_16SrDNA | D94: FAM | E94: HT115::dsMesh | F94: 17.641565 | G94: 100 | O94: Automatic Ct | Q94: Automatic | T94: Automatic | U94: 0.028777357 | AA94: TRUE
A95: 12 | B95: A12 | C95: E.coli_16SrDNA | D95: FAM | E95: HT115::dsMesh | F95: 17.769371 | G95: 100 | O95: Automatic Ct | Q95: Automatic | T95: Automatic | U95: 0.028777357 | AA95: TRUE
A96: 13 | B96: A13 | C96: E.coli_16SrDNA | D96: FAM | E96: dsMesh in-vitro | F96: 33.914646 | G96: 10000 | H96: =AVERAGE(F98:F99)-AVERAGE(F96:F97) -> 1.9869825 | O96: Automatic Ct | Q96: Automatic | T96: Automatic | U96: 0.028777357 | AA96: TRUE
A97: 14 | B97: A14 | C97: E.coli_16SrDNA | D97: FAM | E97: dsMesh in-vitro | F97: 32.945152 | G97: 10000 | O97: Automatic Ct | Q97: Automatic | T97: Automatic | U97: 0.028777357 | AA97: TRUE
A98: 15 | B98: A15 | C98: E.coli_16SrDNA | D98: FAM | E98: dsMesh in-vitro | F98: 35.317318 | G98: 1000 | O98: Automatic Ct | Q98: Automatic | T98: Automatic | U98: 0.028777357 | AA98: TRUE
A99: 16 | B99: A16 | C99: E.coli_16SrDNA | D99: FAM | E99: dsMesh in-vitro | F99: 35.516445 | G99: 1000 | O99: Automatic Ct | Q99: Automatic | T99: Automatic | U99: 0.028777357 | AA99: TRUE
A100: 17 | B100: A17 | C100: E.coli_16SrDNA | D100: FAM | E100: dsMesh in-vitro | F100: Undetermined | G100: 100 | O100: Automatic Ct | Q100: Automatic | T100: Automatic | U100: 0.028777357 | AA100: TRUE | AD100: TRUE
A101: 18 | B101: A18 | C101: E.coli_16SrDNA | D101: FAM | E101: dsMesh in-vitro | F101: Undetermined | G101: 100 | O101: Automatic Ct | Q101: Automatic | T101: Automatic | U101: 0.028777357 | AA101: TRUE | AD101: TRUE
A102: 19 | B102: A19 | C102: E.coli_16SrDNA | D102: FAM | E102: Unknown | F102: 11.569441 | G102: 10000 | H102: =AVERAGE(F104:F105)-AVERAGE(F102:F103) -> 3.177483 | O102: Automatic Ct | Q102: Automatic | T102: Automatic | U102: 0.028777357 | AA102: TRUE
A103: 20 | B103: A20 | C103: E.coli_16SrDNA | D103: FAM | E103: Unknown | F103: 11.696725 | G103: 10000 | O103: Automatic Ct | Q103: Automatic | T103: Automatic | U103: 0.028777357 | AA103: TRUE
A104: 21 | B104: A21 | C104: E.coli_16SrDNA | D104: FAM | E104: Unknown | F104: 14.679221 | G104: 1000 | H104: =AVERAGE(F106:F107)-AVERAGE(F104:F105) -> 3.3100195 | O104: Automatic Ct | Q104: Automatic | T104: Automatic | U104: 0.028777357 | AA104: TRUE | AD104: TRUE
A105: 22 | B105: A22 | C105: E.coli_16SrDNA | D105: FAM | E105: Unknown | F105: 14.941911 | G105: 1000 | O105: Automatic Ct | Q105: Automatic | T105: Automatic | U105: 0.028777357 | AA105: TRUE | AD105: TRUE
A106: 23 | B106: A23 | C106: E.coli_16SrDNA | D106: FAM | E106: Unknown | F106: 18.20377 | G106: 100 | H106: =AVERAGE(F108:F109)-AVERAGE(F106:F107) -> 2.807006 | O106: Automatic Ct | Q106: Automatic | T106: Automatic | U106: 0.028777357 | AA106: TRUE | AD106: TRUE
A107: 24 | B107: A24 | C107: E.coli_16SrDNA | D107: FAM | E107: Unknown | F107: 18.037401 | G107: 100 | O107: Automatic Ct | Q107: Automatic | T107: Automatic | U107: 0.028777357 | AA107: TRUE | AD107: TRUE
A108: 43 | B108: B19 | C108: E.coli_16SrDNA | D108: FAM | E108: Unknown | F108: 20.9191 | G108: 10 | H108: =AVERAGE(F110:F111)-AVERAGE(F108:F109) -> 3.9106665 | O108: Automatic Ct | Q108: Automatic | T108: Automatic | U108: 0.028777357 | AA108: TRUE | AD108: TRUE
A109: 44 | B109: B20 | C109: E.coli_16SrDNA | D109: FAM | E109: Unknown | F109: 20.936083 | G109: 10 | O109: Automatic Ct | Q109: Automatic | T109: Automatic | U109: 0.028777357 | AA109: TRUE | AD109: TRUE
A110: 45 | B110: B21 | C110: E.coli_16SrDNA | D110: FAM | E110: Unknown | F110: 24.372696 | G110: 1 | O110: Automatic Ct | Q110: Automatic | T110: Automatic | U110: 0.028777357 | AA110: TRUE | AD110: TRUE
A111: 46 | B111: B22 | C111: E.coli_16SrDNA | D111: FAM | E111: Unknown | F111: 25.30382 | G111: 1 | O111: Automatic Ct | Q111: Automatic | T111: Automatic | U111: 0.028777357 | AA111: TRUE | AD111: TRUE
A112: 47 | B112: B23 | C112: E.coli_16SrDNA | D112: FAM | E112: Unknown | F112: 36.606857 | G112: NTC | O112: Automatic Ct | Q112: Automatic | T112: Automatic | U112: 0.028777357 | AA112: TRUE | AD112: TRUE
A113: 48 | B113: B24 | C113: E.coli_16SrDNA | D113: FAM | E113: Unknown | F113: Undetermined | G113: NTC | O113: Automatic Ct | Q113: Automatic | T113: Automatic | U113: 0.028777357 | AA113: TRUE | AD113: TRUE
A114: Slope | C114: cycles/log decade
A115: Y-Intercept
A116: R^2
A120: NAP | B120: LPL
